{"text_format":"3","workbook":"xlsx","n_sheets":2,"sheets":["D1 - Renewal Schedule","D2 - Support Hours"],"not_rendered":{"defined_names":2},"read":"whole","date_system":"1900"}

{"sheet":"D1 - Renewal Schedule","index":0,"n_rows":218,"n_cols":10,"rows_kept":218,"merged":[[0,1,0,4],[2,1,2,8],[3,1,4,8],[5,1,8,6],[5,7,7,8],[8,7,8,8],[10,1,10,6],[214,1,214,2],[216,1,216,8],[217,1,217,8]]}
[null,"The Supply of CISCO Data Center Networking License Renewal, Support and Maintenance to the CSIR"]
[]
[]
[null," Site Address: CSIR, Meiring Naude Road, Pretoria"]
[]
[null,"Cisco\t ACI DC",{"$nulls":5},"Hardware, Software Support and Maintenance"]
[]
[]
[{"$nulls":7},"Pricing   Renewal"]
[null,"Product Number","Product Description","PAK/Serial Number","Subscription/Service Description","SKU","Quantity","Total Price (Excl.VAT)","Total Price \n(Incl. VAT)","Total Price (Incl.VAT)"]
[null,"Support Renewal till 31 August 2027"]
[null,"SFP-10G-LR-S=","10GBASE-LR SFP Module, Enterprise-Class","AVD2351K7BG","SNTC 8X5XNBD",null,1,null,{"$f":"H12*1.15","v":{"v":0,"d":"R0.00"}}]
[null,"SFP-10G-LR-S=","10GBASE-LR SFP Module, Enterprise-Class","AVD2351K9M0","SNTC 8X5XNBD",null,1,null,{"v":0,"d":"R0.00"}]
[null,"SFP-10G-LR-S=","10GBASE-LR SFP Module, Enterprise-Class","AVD2351K7BR","SNTC 8X5XNBD",null,1,null,{"v":0,"d":"R0.00"}]
[null,"SFP-10G-LR-S=","10GBASE-LR SFP Module, Enterprise-Class","AVD2351K7BM","SNTC 8X5XNBD",null,1,null,{"v":0,"d":"R0.00"}]
[null,"SFP-10G-LR-S=","10GBASE-LR SFP Module, Enterprise-Class","AVD2351K7CA","SNTC 8X5XNBD",null,1,null,{"v":0,"d":"R0.00"}]
[null,"SFP-10G-LR-S=","10GBASE-LR SFP Module, Enterprise-Class","AVD2351K7C4","SNTC 8X5XNBD",null,1,null,{"v":0,"d":"R0.00"}]
[null,"N9K-C9332C","Nexus 9K ACI & NX-OS Spine, 32p 40/100G & 2p 10G","FDO240706FC","SNTC 8X5XNBD","CON-SNT-N9KC9332",1,null,{"v":0,"d":"R0.00"}]
[null,"NXA-FAN-35CFM-PI","Nexus Fan, 35CFM, port side intake airflow","ACI2351078R","SNTC 8X5XNBD",null,1,null,{"v":0,"d":"R0.00"}]
[null,"NXA-FAN-35CFM-PI","Nexus Fan, 35CFM, port side intake airflow","ACI2351079F","SNTC 8X5XNBD",null,1,null,{"v":0,"d":"R0.00"}]
[null,"ACI-N9KDK9-14.1.2","Nexus 9500 or 9300 ACI Base Software NX-OS Rel 14.1.2",null,"SNTC 8X5XNBD",null,1,null,{"v":0,"d":"R0.00"}]
[null,"MODE-ACI-SPINE","Mode selection between ACI and NXOS",null,"SNTC 8X5XNBD",null,1,null,{"v":0,"d":"R0.00"}]
[null,"NXA-FAN-35CFM-PI","Nexus Fan, 35CFM, port side intake airflow","ACI2351078N","SNTC 8X5XNBD",null,1,null,{"v":0,"d":"R0.00"}]
[null,"NXA-FAN-35CFM-PI","Nexus Fan, 35CFM, port side intake airflow","ACI2351078X","SNTC 8X5XNBD",null,1,null,{"v":0,"d":"R0.00"}]
[null,"CAB-C13-CBN","Cabinet Jumper Power Cord, 250 VAC 10A, C14-C13 Connectors",null,"SNTC 8X5XNBD",null,2,null,{"v":0,"d":"R0.00"}]
[null,"NXA-FAN-35CFM-PI","Nexus Fan, 35CFM, port side intake airflow","ACI23510755","SNTC 8X5XNBD",null,1,null,{"v":0,"d":"R0.00"}]
[null,"NXA-PAC-1100W-PI2","Nexus AC 1100W PSU -  Port Side Intake","ART2351F5BB","SNTC 8X5XNBD",null,1,null,{"v":0,"d":"R0.00"}]
[null,"N3K-C3064-ACC-KIT","Nexus 3K/9K Fixed Accessory Kit",null,"SNTC 8X5XNBD",null,1,null,{"v":0,"d":"R0.00"}]
[null,"NXA-PAC-1100W-PI2","Nexus AC 1100W PSU -  Port Side Intake","ART2351F5LY","SNTC 8X5XNBD",null,1,null,{"v":0,"d":"R0.00"}]
[null,"N9K-C9332C","Nexus 9K ACI & NX-OS Spine, 32p 40/100G & 2p 10G","FDO240706HG","SNTC 8X5XNBD","CON-SNT-N9KC9332",1,null,{"v":0,"d":"R0.00"}]
[null,"NXA-FAN-35CFM-PI","Nexus Fan, 35CFM, port side intake airflow","ACI235107A1","SNTC 8X5XNBD",null,1,null,{"v":0,"d":"R0.00"}]
[null,"N3K-C3064-ACC-KIT","Nexus 3K/9K Fixed Accessory Kit",null,"SNTC 8X5XNBD",null,1,null,{"v":0,"d":"R0.00"}]
[null,"NXA-FAN-35CFM-PI","Nexus Fan, 35CFM, port side intake airflow","ACI2351084B","SNTC 8X5XNBD",null,1,null,{"v":0,"d":"R0.00"}]
[null,"NXA-PAC-1100W-PI2","Nexus AC 1100W PSU -  Port Side Intake","ART2351F5FS","SNTC 8X5XNBD",null,1,null,{"v":0,"d":"R0.00"}]
[null,"CAB-C13-CBN","Cabinet Jumper Power Cord, 250 VAC 10A, C14-C13 Connectors",null,"SNTC 8X5XNBD",null,2,null,{"v":0,"d":"R0.00"}]
[null,"NXA-FAN-35CFM-PI","Nexus Fan, 35CFM, port side intake airflow","ACI2351080W","SNTC 8X5XNBD",null,1,null,{"v":0,"d":"R0.00"}]
[null,"ACI-N9KDK9-14.1.2","Nexus 9500 or 9300 ACI Base Software NX-OS Rel 14.1.2",null,"SNTC 8X5XNBD",null,1,null,{"v":0,"d":"R0.00"}]
[null,"NXA-FAN-35CFM-PI","Nexus Fan, 35CFM, port side intake airflow","ACI235107ZS","SNTC 8X5XNBD",null,1,null,{"v":0,"d":"R0.00"}]
[null,"MODE-ACI-SPINE","Mode selection between ACI and NXOS",null,"SNTC 8X5XNBD",null,1,null,{"v":0,"d":"R0.00"}]
[null,"NXA-PAC-1100W-PI2","Nexus AC 1100W PSU -  Port Side Intake","ART2351F5F9","SNTC 8X5XNBD",null,1,null,{"v":0,"d":"R0.00"}]
[null,"NXA-FAN-35CFM-PI","Nexus Fan, 35CFM, port side intake airflow","ACI235107ZJ","SNTC 8X5XNBD",null,1,null,{"v":0,"d":"R0.00"}]
[null,"N9K-C9348GC-FXP","Nexus 9300 with 48p 100M/1GT, 4p 10/25G & 2p 40/100G QSFP28","FDO240809ZW","CX LEVEL 1 8X5XNBD","CON-L1NBD-N9348F",1,null,{"v":0,"d":"R0.00"}]
[null,"NXA-PAC-350W-PI","Nexus NEBs AC 350W PSU -  Port Side Intake","DCC2342W317","CX LEVEL 1 8X5XNBD",null,1,null,{"v":0,"d":"R0.00"}]
[null,"NXOS-9.2.3","Nexus 9500, 9300, 3000 Base NX-OS Software Rel 9.2.3",null,"CX LEVEL 1 8X5XNBD",null,1,null,{"v":0,"d":"R0.00"}]
[null,"NXA-FAN-30CFM-B","Nexus Fan, 30CFM, port side intake airflow","NID2407S1UY","CX LEVEL 1 8X5XNBD",null,1,null,{"v":0,"d":"R0.00"}]
[null,"N3K-C3064-ACC-KIT","Nexus 3K/9K Fixed Accessory Kit",null,"CX LEVEL 1 8X5XNBD",null,1,null,{"v":0,"d":"R0.00"}]
[null,"NXOS-ES-GF","NX-OS Essentials SW license for a 1G Nexus 9K",null,"CX LVL 1 SW DCN PERP","CON-L1DS-N9SWESGF",1,null,{"v":0,"d":"R0.00"}]
[null,"CAB-C13-CBN","Cabinet Jumper Power Cord, 250 VAC 10A, C14-C13 Connectors",null,"CX LEVEL 1 8X5XNBD",null,2,null,{"v":0,"d":"R0.00"}]
[null,"NXA-PAC-350W-PI","Nexus NEBs AC 350W PSU -  Port Side Intake","DCC2342W30D","CX LEVEL 1 8X5XNBD",null,1,null,{"v":0,"d":"R0.00"}]
[null,"NXA-FAN-30CFM-B","Nexus Fan, 30CFM, port side intake airflow","NID2407S1UR","CX LEVEL 1 8X5XNBD",null,1,null,{"v":0,"d":"R0.00"}]
[null,"NXA-FAN-30CFM-B","Nexus Fan, 30CFM, port side intake airflow","NID2407S1V3","CX LEVEL 1 8X5XNBD",null,1,null,{"v":0,"d":"R0.00"}]
[null,"N9K-C93180YC-EX","Nexus 9300 with 48p 10/25G SFP+ and 6p 100G QSFP28","FDO24081DDB","SNTC 8X5XNBD","CON-SNT-93180YCX",1,null,{"v":0,"d":"R0.00"}]
[null,"NXA-FAN-30CFM-B","Nexus Fan, 30CFM, port side intake airflow","DCH2351RUWX","SNTC 8X5XNBD",null,1,null,{"v":0,"d":"R0.00"}]
[null,"NXA-FAN-30CFM-B","Nexus Fan, 30CFM, port side intake airflow","DCH2351RUWR","SNTC 8X5XNBD",null,1,null,{"v":0,"d":"R0.00"}]
[null,"NXA-PAC-650W-PI","Nexus NEBs AC 650W PSU -  Port Side Intake","ART2344F52G","SNTC 8X5XNBD",null,1,null,{"v":0,"d":"R0.00"}]
[null,"NXOS-ES-XF","NX-OS Essentials license for Nexus 9300 (10G+) Platforms",null,"SWSS","CON-ECMU-N9SWESXF",1,null,{"v":0,"d":"R0.00"}]
[null,"N3K-C3064-ACC-KIT","Nexus 3K/9K Fixed Accessory Kit",null,"SNTC 8X5XNBD",null,1,null,{"v":0,"d":"R0.00"}]
[null,"CAB-C13-CBN","Cabinet Jumper Power Cord, 250 VAC 10A, C14-C13 Connectors",null,"SNTC 8X5XNBD",null,2,null,{"v":0,"d":"R0.00"}]
[null,"NXOS-9.2.3","Nexus 9500, 9300, 3000 Base NX-OS Software Rel 9.2.3",null,"SNTC 8X5XNBD",null,1,null,{"v":0,"d":"R0.00"}]
[null,"NXA-FAN-30CFM-B","Nexus Fan, 30CFM, port side intake airflow","DCH2351RUWC","SNTC 8X5XNBD",null,1,null,{"v":0,"d":"R0.00"}]
[null,"NXA-FAN-30CFM-B","Nexus Fan, 30CFM, port side intake airflow","DCH2351RUWS","SNTC 8X5XNBD",null,1,null,{"v":0,"d":"R0.00"}]
[null,"NXA-PAC-650W-PI","Nexus NEBs AC 650W PSU -  Port Side Intake","ART2344F52Y","SNTC 8X5XNBD",null,1,null,{"v":0,"d":"R0.00"}]
[null,"C1-SUBS-OPTOUT","OPT OUT FOR \"Default\" DCN Subscription Selection",null,"SNTC 8X5XNBD",null,1,null,{"v":0,"d":"R0.00"}]
[null,"N9K-C93180YC-EX","Nexus 9300 with 48p 10/25G SFP+ and 6p 100G QSFP28","FDO24080L83","CX LEVEL 1 8X5XNBD","CON-L1NBD-93180YCX",1,null,{"v":0,"d":"R0.00"}]
[null,"NXA-PAC-650W-PI","Nexus NEBs AC 650W PSU -  Port Side Intake","ART2344F53J","CX LEVEL 1 8X5XNBD",null,1,null,{"v":0,"d":"R0.00"}]
[null,"ACI-N9KDK9-14.1.2","Nexus 9500 or 9300 ACI Base Software NX-OS Rel 14.1.2",null,"CX LEVEL 1 8X5XNBD",null,1,null,{"v":0,"d":"R0.00"}]
[null,"NXA-PAC-650W-PI","Nexus NEBs AC 650W PSU -  Port Side Intake","ART2344F51S","CX LEVEL 1 8X5XNBD",null,1,null,{"v":0,"d":"R0.00"}]
[null,"QSFP-40G-SR-BD","QSFP40G BiDi Short-reach Transceiver","AVM2404UDFK","CX LEVEL 1 8X5XNBD",null,1,null,{"v":0,"d":"R0.00"}]
[null,"N3K-C3064-ACC-KIT","Nexus 3K/9K Fixed Accessory Kit",null,"CX LEVEL 1 8X5XNBD",null,1,null,{"v":0,"d":"R0.00"}]
[null,"NXA-FAN-30CFM-B","Nexus Fan, 30CFM, port side intake airflow","DCH2351S27R","CX LEVEL 1 8X5XNBD",null,1,null,{"v":0,"d":"R0.00"}]
[null,"QSFP-40G-SR-BD","QSFP40G BiDi Short-reach Transceiver","AVM2404UDFJ","CX LEVEL 1 8X5XNBD",null,1,null,{"v":0,"d":"R0.00"}]
[null,"NXA-FAN-30CFM-B","Nexus Fan, 30CFM, port side intake airflow","DCH2351S27L","CX LEVEL 1 8X5XNBD",null,1,null,{"v":0,"d":"R0.00"}]
[null,"QSFP-40G-SR-BD","QSFP40G BiDi Short-reach Transceiver","AVM2404UDF7","CX LEVEL 1 8X5XNBD",null,1,null,{"v":0,"d":"R0.00"}]
[null,"CAB-C13-CBN","Cabinet Jumper Power Cord, 250 VAC 10A, C14-C13 Connectors",null,"CX LEVEL 1 8X5XNBD",null,2,null,{"v":0,"d":"R0.00"}]
[null,"NXA-FAN-30CFM-B","Nexus Fan, 30CFM, port side intake airflow","DCH2351RUYG","CX LEVEL 1 8X5XNBD",null,1,null,{"v":0,"d":"R0.00"}]
[null,"ACI-ES-XF","DCN Essential SW license for 10G+ Nexus 9K Leaf","GCN3B8GEHMN","CX LVL 1 SW DCN PERP","CON-L1DS-ACIESXF",1,null,{"v":0,"d":"R0.00"}]
[null,"QSFP-40G-SR-BD","QSFP40G BiDi Short-reach Transceiver","AVM2404UDFG","CX LEVEL 1 8X5XNBD",null,1,null,{"v":0,"d":"R0.00"}]
[null,"NXA-FAN-30CFM-B","Nexus Fan, 30CFM, port side intake airflow","DCH2351RUYV","CX LEVEL 1 8X5XNBD",null,1,null,{"v":0,"d":"R0.00"}]
[null,"N9K-C93180YC-EX","Nexus 9300 with 48p 10/25G SFP+ and 6p 100G QSFP28","FDO24080L4Y","CX LEVEL 1 8X5XNBD","CON-L1NBD-93180YCX",1,null,{"v":0,"d":"R0.00"}]
[null,"NXA-PAC-650W-PI","Nexus NEBs AC 650W PSU -  Port Side Intake","ART2344F51E","CX LEVEL 1 8X5XNBD",null,1,null,{"v":0,"d":"R0.00"}]
[null,"QSFP-40G-SR-BD","QSFP40G BiDi Short-reach Transceiver","AVM2405U4M9","CX LEVEL 1 8X5XNBD",null,1,null,{"v":0,"d":"R0.00"}]
[null,"N3K-C3064-ACC-KIT","Nexus 3K/9K Fixed Accessory Kit",null,"CX LEVEL 1 8X5XNBD",null,1,null,{"v":0,"d":"R0.00"}]
[null,"ACI-ES-XF","DCN Essential SW license for 10G+ Nexus 9K Leaf","1EBCB58IYNV","CX LVL 1 SW DCN PERP","CON-L1DS-ACIESXF",1,null,{"v":0,"d":"R0.00"}]
[null,"QSFP-40G-SR-BD","QSFP40G BiDi Short-reach Transceiver","AVM2405U4MC","CX LEVEL 1 8X5XNBD",null,1,null,{"v":0,"d":"R0.00"}]
[null,"NXA-FAN-30CFM-B","Nexus Fan, 30CFM, port side intake airflow","DCH2351S27K","CX LEVEL 1 8X5XNBD",null,1,null,{"v":0,"d":"R0.00"}]
[null,"QSFP-40G-SR-BD","QSFP40G BiDi Short-reach Transceiver","AVM2405U4M7","CX LEVEL 1 8X5XNBD",null,1,null,{"v":0,"d":"R0.00"}]
[null,"CAB-C13-CBN","Cabinet Jumper Power Cord, 250 VAC 10A, C14-C13 Connectors",null,"CX LEVEL 1 8X5XNBD",null,2,null,{"v":0,"d":"R0.00"}]
[null,"NXA-PAC-650W-PI","Nexus NEBs AC 650W PSU -  Port Side Intake","ART2344F528","CX LEVEL 1 8X5XNBD",null,1,null,{"v":0,"d":"R0.00"}]
[null,"NXA-FAN-30CFM-B","Nexus Fan, 30CFM, port side intake airflow","DCH2351S27N","CX LEVEL 1 8X5XNBD",null,1,null,{"v":0,"d":"R0.00"}]
[null,"NXA-FAN-30CFM-B","Nexus Fan, 30CFM, port side intake airflow","DCH2351S280","CX LEVEL 1 8X5XNBD",null,1,null,{"v":0,"d":"R0.00"}]
[null,"NXA-FAN-30CFM-B","Nexus Fan, 30CFM, port side intake airflow","DCH2351S27Z","CX LEVEL 1 8X5XNBD",null,1,null,{"v":0,"d":"R0.00"}]
[null,"ACI-N9KDK9-14.1.2","Nexus 9500 or 9300 ACI Base Software NX-OS Rel 14.1.2",null,"CX LEVEL 1 8X5XNBD",null,1,null,{"v":0,"d":"R0.00"}]
[null,"QSFP-40G-SR-BD","QSFP40G BiDi Short-reach Transceiver","AVM2405U4MA","CX LEVEL 1 8X5XNBD",null,1,null,{"v":0,"d":"R0.00"}]
[null,"N9K-C93180YC-EX","Nexus 9300 with 48p 10/25G SFP+ and 6p 100G QSFP28","FDO24080L57","CX LEVEL 1 8X5XNBD","CON-L1NBD-93180YCX",1,null,{"v":0,"d":"R0.00"}]
[null,"ACI-ES-XF","DCN Essential SW license for 10G+ Nexus 9K Leaf","4QXRTC8ZDNA","CX LVL 1 SW DCN PERP","CON-L1DS-ACIESXF",1,null,{"v":0,"d":"R0.00"}]
[null,"N3K-C3064-ACC-KIT","Nexus 3K/9K Fixed Accessory Kit",null,"CX LEVEL 1 8X5XNBD",null,1,null,{"v":0,"d":"R0.00"}]
[null,"QSFP-40G-SR-BD","QSFP40G BiDi Short-reach Transceiver","AVM2405U7F0","CX LEVEL 1 8X5XNBD",null,1,null,{"v":0,"d":"R0.00"}]
[null,"QSFP-40G-SR-BD","QSFP40G BiDi Short-reach Transceiver","AVM2405U7EX","CX LEVEL 1 8X5XNBD",null,1,null,{"v":0,"d":"R0.00"}]
[null,"NXA-FAN-30CFM-B","Nexus Fan, 30CFM, port side intake airflow","DCH2351S28C","CX LEVEL 1 8X5XNBD",null,1,null,{"v":0,"d":"R0.00"}]
[null,"NXA-PAC-650W-PI","Nexus NEBs AC 650W PSU -  Port Side Intake","ART2344F4Z7","CX LEVEL 1 8X5XNBD",null,1,null,{"v":0,"d":"R0.00"}]
[null,"CAB-C13-CBN","Cabinet Jumper Power Cord, 250 VAC 10A, C14-C13 Connectors",null,"CX LEVEL 1 8X5XNBD",null,2,null,{"v":0,"d":"R0.00"}]
[null,"NXA-FAN-30CFM-B","Nexus Fan, 30CFM, port side intake airflow","DCH2351S283","CX LEVEL 1 8X5XNBD",null,1,null,{"v":0,"d":"R0.00"}]
[null,"QSFP-40G-SR-BD","QSFP40G BiDi Short-reach Transceiver","AVM2405U7EY","CX LEVEL 1 8X5XNBD",null,1,null,{"v":0,"d":"R0.00"}]
[null,"NXA-FAN-30CFM-B","Nexus Fan, 30CFM, port side intake airflow","DCH2351S28B","CX LEVEL 1 8X5XNBD",null,1,null,{"v":0,"d":"R0.00"}]
[null,"NXA-PAC-650W-PI","Nexus NEBs AC 650W PSU -  Port Side Intake","ART2344F4ZE","CX LEVEL 1 8X5XNBD",null,1,null,{"v":0,"d":"R0.00"}]
[null,"ACI-N9KDK9-14.1.2","Nexus 9500 or 9300 ACI Base Software NX-OS Rel 14.1.2",null,"CX LEVEL 1 8X5XNBD",null,1,null,{"v":0,"d":"R0.00"}]
[null,"QSFP-40G-SR-BD","QSFP40G BiDi Short-reach Transceiver","AVM2405U7EW","CX LEVEL 1 8X5XNBD",null,1,null,{"v":0,"d":"R0.00"}]
[null,"NXA-FAN-30CFM-B","Nexus Fan, 30CFM, port side intake airflow","DCH2351S28D","CX LEVEL 1 8X5XNBD",null,1,null,{"v":0,"d":"R0.00"}]
[null,"N9K-C93180YC-EX","Nexus 9300 with 48p 10/25G SFP+ and 6p 100G QSFP28","FDO24081DCA","CX LEVEL 1 8X5XNBD","CON-L1NBD-93180YCX",1,null,{"v":0,"d":"R0.00"}]
[null,"N3K-C3064-ACC-KIT","Nexus 3K/9K Fixed Accessory Kit",null,"CX LEVEL 1 8X5XNBD",null,1,null,{"v":0,"d":"R0.00"}]
[null,"QSFP-40G-SR-BD","QSFP40G BiDi Short-reach Transceiver","AVM2405U4AN","CX LEVEL 1 8X5XNBD",null,1,null,{"v":0,"d":"R0.00"}]
[null,"QSFP-40G-SR-BD","QSFP40G BiDi Short-reach Transceiver","AVM2405U4AL","CX LEVEL 1 8X5XNBD",null,1,null,{"v":0,"d":"R0.00"}]
[null,"NXA-FAN-30CFM-B","Nexus Fan, 30CFM, port side intake airflow","DCH2351S27U","CX LEVEL 1 8X5XNBD",null,1,null,{"v":0,"d":"R0.00"}]
[null,"QSFP-40G-SR-BD","QSFP40G BiDi Short-reach Transceiver","AVM2405U4MD","CX LEVEL 1 8X5XNBD",null,1,null,{"v":0,"d":"R0.00"}]
[null,"ACI-ES-XF","DCN Essential SW license for 10G+ Nexus 9K Leaf","T8H0N65OO8H","CX LVL 1 SW DCN PERP","CON-L1DS-ACIESXF",1,null,{"v":0,"d":"R0.00"}]
[null,"CAB-C13-CBN","Cabinet Jumper Power Cord, 250 VAC 10A, C14-C13 Connectors",null,"CX LEVEL 1 8X5XNBD",null,2,null,{"v":0,"d":"R0.00"}]
[null,"NXA-FAN-30CFM-B","Nexus Fan, 30CFM, port side intake airflow","DCH2351S27Q","CX LEVEL 1 8X5XNBD",null,1,null,{"v":0,"d":"R0.00"}]
[null,"NXA-FAN-30CFM-B","Nexus Fan, 30CFM, port side intake airflow","DCH2351S281","CX LEVEL 1 8X5XNBD",null,1,null,{"v":0,"d":"R0.00"}]
[null,"NXA-PAC-650W-PI","Nexus NEBs AC 650W PSU -  Port Side Intake","ART2344F4YX","CX LEVEL 1 8X5XNBD",null,1,null,{"v":0,"d":"R0.00"}]
[null,"ACI-N9KDK9-14.1.2","Nexus 9500 or 9300 ACI Base Software NX-OS Rel 14.1.2",null,"CX LEVEL 1 8X5XNBD",null,1,null,{"v":0,"d":"R0.00"}]
[null,"NXA-FAN-30CFM-B","Nexus Fan, 30CFM, port side intake airflow","DCH2351S27S","CX LEVEL 1 8X5XNBD",null,1,null,{"v":0,"d":"R0.00"}]
[null,"NXA-PAC-650W-PI","Nexus NEBs AC 650W PSU -  Port Side Intake","ART2344F541","CX LEVEL 1 8X5XNBD",null,1,null,{"v":0,"d":"R0.00"}]
[null,"QSFP-40G-SR-BD","QSFP40G BiDi Short-reach Transceiver","AVM2405U4ME","CX LEVEL 1 8X5XNBD",null,1,null,{"v":0,"d":"R0.00"}]
[null,"N9K-C93180YC-EX","Nexus 9300 with 48p 10/25G SFP+ and 6p 100G QSFP28","FDO24080L6L","CX LEVEL 1 8X5XNBD","CON-L1NBD-93180YCX",1,null,{"v":0,"d":"R0.00"}]
[null,"QSFP-40G-SR-BD","QSFP40G BiDi Short-reach Transceiver","AVM2405U78C","CX LEVEL 1 8X5XNBD",null,1,null,{"v":0,"d":"R0.00"}]
[null,"NXA-FAN-30CFM-B","Nexus Fan, 30CFM, port side intake airflow","DCH2351S286","CX LEVEL 1 8X5XNBD",null,1,null,{"v":0,"d":"R0.00"}]
[null,"N3K-C3064-ACC-KIT","Nexus 3K/9K Fixed Accessory Kit",null,"CX LEVEL 1 8X5XNBD",null,1,null,{"v":0,"d":"R0.00"}]
[null,"NXA-FAN-30CFM-B","Nexus Fan, 30CFM, port side intake airflow","DCH2351S285","CX LEVEL 1 8X5XNBD",null,1,null,{"v":0,"d":"R0.00"}]
[null,"NXA-PAC-650W-PI","Nexus NEBs AC 650W PSU -  Port Side Intake","ART2344F517","CX LEVEL 1 8X5XNBD",null,1,null,{"v":0,"d":"R0.00"}]
[null,"QSFP-40G-SR-BD","QSFP40G BiDi Short-reach Transceiver","AVM2405U78P","CX LEVEL 1 8X5XNBD",null,1,null,{"v":0,"d":"R0.00"}]
[null,"CAB-C13-CBN","Cabinet Jumper Power Cord, 250 VAC 10A, C14-C13 Connectors",null,"CX LEVEL 1 8X5XNBD",null,2,null,{"v":0,"d":"R0.00"}]
[null,"QSFP-40G-SR-BD","QSFP40G BiDi Short-reach Transceiver","AVM2405U78M","CX LEVEL 1 8X5XNBD",null,1,null,{"v":0,"d":"R0.00"}]
[null,"NXA-PAC-650W-PI","Nexus NEBs AC 650W PSU -  Port Side Intake","ART2344F5HR","CX LEVEL 1 8X5XNBD",null,1,null,{"v":0,"d":"R0.00"}]
[null,"NXA-FAN-30CFM-B","Nexus Fan, 30CFM, port side intake airflow","DCH2351S284","CX LEVEL 1 8X5XNBD",null,1,null,{"v":0,"d":"R0.00"}]
[null,"ACI-N9KDK9-14.1.2","Nexus 9500 or 9300 ACI Base Software NX-OS Rel 14.1.2",null,"CX LEVEL 1 8X5XNBD",null,1,null,{"v":0,"d":"R0.00"}]
[null,"NXA-FAN-30CFM-B","Nexus Fan, 30CFM, port side intake airflow","DCH2351S27T","CX LEVEL 1 8X5XNBD",null,1,null,{"v":0,"d":"R0.00"}]
[null,"ACI-ES-XF","DCN Essential SW license for 10G+ Nexus 9K Leaf","55695V9MO2O","CX LVL 1 SW DCN PERP","CON-L1DS-ACIESXF",1,null,{"v":0,"d":"R0.00"}]
[null,"QSFP-40G-SR-BD","QSFP40G BiDi Short-reach Transceiver","AVM2405U78Q","CX LEVEL 1 8X5XNBD",null,1,null,{"v":0,"d":"R0.00"}]
[null,"N9K-C93180YC-EX","Nexus 9300 with 48p 10/25G SFP+ and 6p 100G QSFP28","FDO24080L9U","CX LEVEL 1 8X5XNBD","CON-L1NBD-93180YCX",1,null,{"v":0,"d":"R0.00"}]
[null,"CAB-C13-CBN","Cabinet Jumper Power Cord, 250 VAC 10A, C14-C13 Connectors",null,"CX LEVEL 1 8X5XNBD",null,2,null,{"v":0,"d":"R0.00"}]
[null,"NXA-FAN-30CFM-B","Nexus Fan, 30CFM, port side intake airflow","DCH2351S28H","CX LEVEL 1 8X5XNBD",null,1,null,{"v":0,"d":"R0.00"}]
[null,"QSFP-40G-SR-BD","QSFP40G BiDi Short-reach Transceiver","AVM2405U7EV","CX LEVEL 1 8X5XNBD",null,1,null,{"v":0,"d":"R0.00"}]
[null,"QSFP-40G-SR-BD","QSFP40G BiDi Short-reach Transceiver","AVM2405U7F1","CX LEVEL 1 8X5XNBD",null,1,null,{"v":0,"d":"R0.00"}]
[null,"QSFP-40G-SR-BD","QSFP40G BiDi Short-reach Transceiver","AVM2405U7F6","CX LEVEL 1 8X5XNBD",null,1,null,{"v":0,"d":"R0.00"}]
[null,"NXA-FAN-30CFM-B","Nexus Fan, 30CFM, port side intake airflow","DCH2351S282","CX LEVEL 1 8X5XNBD",null,1,null,{"v":0,"d":"R0.00"}]
[null,"NXA-FAN-30CFM-B","Nexus Fan, 30CFM, port side intake airflow","DCH2351S28J","CX LEVEL 1 8X5XNBD",null,1,null,{"v":0,"d":"R0.00"}]
[null,"NXA-FAN-30CFM-B","Nexus Fan, 30CFM, port side intake airflow","DCH2351S27V","CX LEVEL 1 8X5XNBD",null,1,null,{"v":0,"d":"R0.00"}]
[null,"NXA-PAC-650W-PI","Nexus NEBs AC 650W PSU -  Port Side Intake","ART2344F4ZJ","CX LEVEL 1 8X5XNBD",null,1,null,{"v":0,"d":"R0.00"}]
[null,"ACI-N9KDK9-14.1.2","Nexus 9500 or 9300 ACI Base Software NX-OS Rel 14.1.2",null,"CX LEVEL 1 8X5XNBD",null,1,null,{"v":0,"d":"R0.00"}]
[null,"N3K-C3064-ACC-KIT","Nexus 3K/9K Fixed Accessory Kit",null,"CX LEVEL 1 8X5XNBD",null,1,null,{"v":0,"d":"R0.00"}]
[null,"QSFP-40G-SR-BD","QSFP40G BiDi Short-reach Transceiver","AVM2405U789","CX LEVEL 1 8X5XNBD",null,1,null,{"v":0,"d":"R0.00"}]
[null,"NXA-PAC-650W-PI","Nexus NEBs AC 650W PSU -  Port Side Intake","ART2344F4YY","CX LEVEL 1 8X5XNBD",null,1,null,{"v":0,"d":"R0.00"}]
[null,"ACI-ES-XF","DCN Essential SW license for 10G+ Nexus 9K Leaf","2LZRDO6PJK7","CX LVL 1 SW DCN PERP","CON-L1DS-ACIESXF",1,null,{"v":0,"d":"R0.00"}]
[null,"APIC-CLUSTER-M3","APIC Cluster - Medium Configurations (Up to 1200 Edge Ports)",null,"CX LEVEL 1 8X5XNBD","CON-L1NBD-APICCLM3",1,null,{"v":0,"d":"R0.00"}]
[null,"APIC-MR-X16G1RS-H","16GB DDR4-2666-MHz RDIMM/PC4-21300/single rank/x4/1.2v","S802C251947F0CF3855","CX LEVEL 1 8X5XNBD",null,1,null,{"v":0,"d":"R0.00"}]
[null,"APIC-MR-X16G1RS-H","16GB DDR4-2666-MHz RDIMM/PC4-21300/single rank/x4/1.2v","S802C251947F0CF3653","CX LEVEL 1 8X5XNBD",null,1,null,{"v":0,"d":"R0.00"}]
[null,"APIC-MR-X16G1RS-H","16GB DDR4-2666-MHz RDIMM/PC4-21300/single rank/x4/1.2v","S802C251947F0CF3700","CX LEVEL 1 8X5XNBD",null,1,null,{"v":0,"d":"R0.00"}]
[null,"APIC-MR-X16G1RS-H","16GB DDR4-2666-MHz RDIMM/PC4-21300/single rank/x4/1.2v","S802C251947F0CF36C2","CX LEVEL 1 8X5XNBD",null,1,null,{"v":0,"d":"R0.00"}]
[null,"APIC-MR-X16G1RS-H","16GB DDR4-2666-MHz RDIMM/PC4-21300/single rank/x4/1.2v","S802C251947F0CF377E","CX LEVEL 1 8X5XNBD",null,1,null,{"v":0,"d":"R0.00"}]
[null,"APIC-MR-X16G1RS-H","16GB DDR4-2666-MHz RDIMM/PC4-21300/single rank/x4/1.2v","S802C251947F0CF353E","CX LEVEL 1 8X5XNBD",null,1,null,{"v":0,"d":"R0.00"}]
[null,"APIC-MR-X16G1RS-H","16GB DDR4-2666-MHz RDIMM/PC4-21300/single rank/x4/1.2v","S802C251947F0CF384E","CX LEVEL 1 8X5XNBD",null,1,null,{"v":0,"d":"R0.00"}]
[null,"APIC-MR-X16G1RS-H","16GB DDR4-2666-MHz RDIMM/PC4-21300/single rank/x4/1.2v","S802C251947F0CF3784","CX LEVEL 1 8X5XNBD",null,1,null,{"v":0,"d":"R0.00"}]
[null,"APIC-MR-X16G1RS-H","16GB DDR4-2666-MHz RDIMM/PC4-21300/single rank/x4/1.2v","S802C251947F0CF3853","CX LEVEL 1 8X5XNBD",null,1,null,{"v":0,"d":"R0.00"}]
[null,"APIC-RAID-M5","Cisco 12G Modular RAID controller with 2GB cache","LSK235104VU","CX LEVEL 1 8X5XNBD",null,1,null,{"v":0,"d":"R0.00"}]
[null,"APIC-MR-X16G1RS-H","16GB DDR4-2666-MHz RDIMM/PC4-21300/single rank/x4/1.2v","S802C251947F0CF36F7","CX LEVEL 1 8X5XNBD",null,1,null,{"v":0,"d":"R0.00"}]
[null,"APIC-MR-X16G1RS-H","16GB DDR4-2666-MHz RDIMM/PC4-21300/single rank/x4/1.2v","S802C251947F0CF36EB","CX LEVEL 1 8X5XNBD",null,1,null,{"v":0,"d":"R0.00"}]
[null,"APIC-SD400G123X-EP","400GB 2.5in Enterprise Performance 12G SAS SSD(3X endurance)","20C0A187TSNF","CX LEVEL 1 8X5XNBD",null,1,null,{"v":0,"d":"R0.00"}]
[null,"APIC-SD400G123X-EP","400GB 2.5in Enterprise Performance 12G SAS SSD(3X endurance)","20C0A18BTSNF","CX LEVEL 1 8X5XNBD",null,1,null,{"v":0,"d":"R0.00"}]
[null,"APIC-RAID-M5","Cisco 12G Modular RAID controller with 2GB cache","LSK2351057R","CX LEVEL 1 8X5XNBD",null,1,null,{"v":0,"d":"R0.00"}]
[null,"APIC-TPM2-002","Trusted Platform Module 2.0 for UCS servers","FCH24037F6G","CX LEVEL 1 8X5XNBD",null,1,null,{"v":0,"d":"R0.00"}]
[null,"APIC-TPM2-002","Trusted Platform Module 2.0 for UCS servers","FCH240379HR","CX LEVEL 1 8X5XNBD",null,1,null,{"v":0,"d":"R0.00"}]
[null,"APIC-CPU-3106","1.7 GHz 3106/85W 8C/11MB Cache/DDR4 2133MHz","79TG123800685","CX LEVEL 1 8X5XNBD",null,1,null,{"v":0,"d":"R0.00"}]
[null,"APIC-CPU-3106","1.7 GHz 3106/85W 8C/11MB Cache/DDR4 2133MHz","79TG123800699","CX LEVEL 1 8X5XNBD",null,1,null,{"v":0,"d":"R0.00"}]
[null,"APIC-SERVER-M3","APIC Appliance - Medium Configuration (Upto 1200 Edge Ports)","WZP23350PMB","CX LEVEL 1 8X5XNBD",null,1,null,{"v":0,"d":"R0.00"}]
[null,"APIC-HD1T7K12N","1 TB 12G SAS 7.2K RPM SFF HDD","W472XE70","CX LEVEL 1 8X5XNBD",null,1,null,{"v":0,"d":"R0.00"}]
[null,"APIC-CPU-3106","1.7 GHz 3106/85W 8C/11MB Cache/DDR4 2133MHz","79TG123801141","CX LEVEL 1 8X5XNBD",null,1,null,{"v":0,"d":"R0.00"}]
[null,"APIC-HD1T7K12N","1 TB 12G SAS 7.2K RPM SFF HDD","W472XEP8","CX LEVEL 1 8X5XNBD",null,1,null,{"v":0,"d":"R0.00"}]
[null,"APIC-PCIE-C25Q-04","Cisco APIC VIC 1455 Quad Port 10/25G SFP28 CNA PCIE","FCH23507ECK","CX LEVEL 1 8X5XNBD",null,1,null,{"v":0,"d":"R0.00"}]
[null,"APIC-DK9-4.1","APIC Base Software Release 4.1",null,"CX LEVEL 1 8X5XNBD",null,1,null,{"v":0,"d":"R0.00"}]
[null,"APIC-PSU1-770W","770W power supply for USC C-Series","APS234700BQ","CX LEVEL 1 8X5XNBD",null,1,null,{"v":0,"d":"R0.00"}]
[null,"APIC-PSU1-770W","770W power supply for USC C-Series","APS234601Y7","CX LEVEL 1 8X5XNBD",null,1,null,{"v":0,"d":"R0.00"}]
[null,"CAB-C13-CBN","Cabinet Jumper Power Cord, 250 VAC 10A, C14-C13 Connectors",null,"CX LEVEL 1 8X5XNBD",null,2,null,{"v":0,"d":"R0.00"}]
[null,"APIC-USBFLSHB-16GB","UCS Servers 16GB Flash USB Drive","UVH234501NH","CX LEVEL 1 8X5XNBD",null,1,null,{"v":0,"d":"R0.00"}]
[null,"APIC-RAID-M5","Cisco 12G Modular RAID controller with 2GB cache","LSK235104UD","CX LEVEL 1 8X5XNBD",null,1,null,{"v":0,"d":"R0.00"}]
[null,"APIC-MR-X16G1RS-H","16GB DDR4-2666-MHz RDIMM/PC4-21300/single rank/x4/1.2v","S802C251947F0CF37E6","CX LEVEL 1 8X5XNBD",null,1,null,{"v":0,"d":"R0.00"}]
[null,"APIC-MR-X16G1RS-H","16GB DDR4-2666-MHz RDIMM/PC4-21300/single rank/x4/1.2v","S802C251947F0CF1D90","CX LEVEL 1 8X5XNBD",null,1,null,{"v":0,"d":"R0.00"}]
[null,"APIC-MR-X16G1RS-H","16GB DDR4-2666-MHz RDIMM/PC4-21300/single rank/x4/1.2v","S802C251947F0CF151C","CX LEVEL 1 8X5XNBD",null,1,null,{"v":0,"d":"R0.00"}]
[null,"APIC-MR-X16G1RS-H","16GB DDR4-2666-MHz RDIMM/PC4-21300/single rank/x4/1.2v","S802C251947F0CF151D","CX LEVEL 1 8X5XNBD",null,1,null,{"v":0,"d":"R0.00"}]
[null,"APIC-MR-X16G1RS-H","16GB DDR4-2666-MHz RDIMM/PC4-21300/single rank/x4/1.2v","S802C251947F0CF1DED","CX LEVEL 1 8X5XNBD",null,1,null,{"v":0,"d":"R0.00"}]
[null,"APIC-MR-X16G1RS-H","16GB DDR4-2666-MHz RDIMM/PC4-21300/single rank/x4/1.2v","S802C251947F0CF1DE3","CX LEVEL 1 8X5XNBD",null,1,null,{"v":0,"d":"R0.00"}]
[null,"APIC-PCIE-C25Q-04","Cisco APIC VIC 1455 Quad Port 10/25G SFP28 CNA PCIE","FCH2345785L","CX LEVEL 1 8X5XNBD",null,1,null,{"v":0,"d":"R0.00"}]
[null,"APIC-MR-X16G1RS-H","16GB DDR4-2666-MHz RDIMM/PC4-21300/single rank/x4/1.2v","S802C251947F0CF1DF0","CX LEVEL 1 8X5XNBD",null,1,null,{"v":0,"d":"R0.00"}]
[null,"APIC-SD400G123X-EP","400GB 2.5in Enterprise Performance 12G SAS SSD(3X endurance)","20C0A188TSNF","CX LEVEL 1 8X5XNBD",null,1,null,{"v":0,"d":"R0.00"}]
[null,"APIC-TPM2-002","Trusted Platform Module 2.0 for UCS servers","FCH240378RF","CX LEVEL 1 8X5XNBD",null,1,null,{"v":0,"d":"R0.00"}]
[null,"APIC-CPU-3106","1.7 GHz 3106/85W 8C/11MB Cache/DDR4 2133MHz","79TG123800519","CX LEVEL 1 8X5XNBD",null,1,null,{"v":0,"d":"R0.00"}]
[null,"APIC-CPU-3106","1.7 GHz 3106/85W 8C/11MB Cache/DDR4 2133MHz","79HQ834200091","CX LEVEL 1 8X5XNBD",null,1,null,{"v":0,"d":"R0.00"}]
[null,"APIC-DK9-4.1","APIC Base Software Release 4.1",null,"CX LEVEL 1 8X5XNBD",null,1,null,{"v":0,"d":"R0.00"}]
[null,"APIC-HD1T7K12N","1 TB 12G SAS 7.2K RPM SFF HDD","W472XEP0","CX LEVEL 1 8X5XNBD",null,1,null,{"v":0,"d":"R0.00"}]
[null,"APIC-USBFLSHB-16GB","UCS Servers 16GB Flash USB Drive","UVH234501P6","CX LEVEL 1 8X5XNBD",null,1,null,{"v":0,"d":"R0.00"}]
[null,"APIC-CPU-3106","1.7 GHz 3106/85W 8C/11MB Cache/DDR4 2133MHz","79TG123801230","CX LEVEL 1 8X5XNBD",null,1,null,{"v":0,"d":"R0.00"}]
[null,"APIC-HD1T7K12N","1 TB 12G SAS 7.2K RPM SFF HDD","W472XDSR","CX LEVEL 1 8X5XNBD",null,1,null,{"v":0,"d":"R0.00"}]
[null,"APIC-PSU1-770W","770W power supply for USC C-Series","APS234700BX","CX LEVEL 1 8X5XNBD",null,1,null,{"v":0,"d":"R0.00"}]
[null,"APIC-HD1T7K12N","1 TB 12G SAS 7.2K RPM SFF HDD","W472XDKA","CX LEVEL 1 8X5XNBD",null,1,null,{"v":0,"d":"R0.00"}]
[null,"APIC-HD1T7K12N","1 TB 12G SAS 7.2K RPM SFF HDD","W472XDP9","CX LEVEL 1 8X5XNBD",null,1,null,{"v":0,"d":"R0.00"}]
[null,"APIC-PCIE-C25Q-04","Cisco APIC VIC 1455 Quad Port 10/25G SFP28 CNA PCIE","FCH2349784X","CX LEVEL 1 8X5XNBD",null,1,null,{"v":0,"d":"R0.00"}]
[null,"APIC-PSU1-770W","770W power supply for USC C-Series","APS234700BZ","CX LEVEL 1 8X5XNBD",null,1,null,{"v":0,"d":"R0.00"}]
[null,"APIC-SERVER-M3","APIC Appliance - Medium Configuration (Upto 1200 Edge Ports)","WZP23480T01","CX LEVEL 1 8X5XNBD",null,1,null,{"v":0,"d":"R0.00"}]
[null,"APIC-DK9-4.1","APIC Base Software Release 4.1",null,"CX LEVEL 1 8X5XNBD",null,1,null,{"v":0,"d":"R0.00"}]
[null,"CAB-C13-CBN","Cabinet Jumper Power Cord, 250 VAC 10A, C14-C13 Connectors",null,"CX LEVEL 1 8X5XNBD",null,2,null,{"v":0,"d":"R0.00"}]
[null,"APIC-SERVER-M3","APIC Appliance - Medium Configuration (Upto 1200 Edge Ports)","WZP23480T1F","CX LEVEL 1 8X5XNBD",null,1,null,{"v":0,"d":"R0.00"}]
[null,"APIC-PSU1-770W","770W power supply for USC C-Series","APS234700CE","CX LEVEL 1 8X5XNBD",null,1,null,{"v":0,"d":"R0.00"}]
[null,"APIC-PSU1-770W","770W power supply for USC C-Series","APS2347012K","CX LEVEL 1 8X5XNBD",null,1,null,{"v":0,"d":"R0.00"}]
[null,"CAB-C13-CBN","Cabinet Jumper Power Cord, 250 VAC 10A, C14-C13 Connectors",null,"CX LEVEL 1 8X5XNBD",null,2,null,{"v":0,"d":"R0.00"}]
[null,"APIC-USBFLSHB-16GB","UCS Servers 16GB Flash USB Drive","UVH234501HP","CX LEVEL 1 8X5XNBD",null,1,null,{"v":0,"d":"R0.00"}]
[{"$nulls":7},{"$f":"SUM(H12:H214)","v":{"v":0,"d":"R0.00"}},{"v":0,"d":"R0.00"},{"v":0,"d":"R0.00"}]
[]
[null,"ONLY ENTER VALUES IN THE BLUE SHADED CELLS"]
[null,"Please take note that some of the listed items are not quotable, and the lines have been locked for editing. Only the SKU highlighted in green should be quoted."]

{"sheet":"D2 - Support Hours","index":1,"n_rows":107,"n_cols":5,"rows_kept":107,"merged":[[0,1,1,4],[2,1,6,1],[2,2,3,2],[2,3,2,4],[8,1,8,4],[9,1,9,4],[10,1,10,4],[106,1,106,4]]}
[null,"Annexure D: Support Hours (to be used up to 31 August 2027)"]
[]
[null,"Support Hours","Quantity"," Pricing "]
[{"$nulls":3},"Total Price (Excl. VAT)","Total Price (Incl. VAT)"]
[null,null,"200 Support hours"]
[null,null,"2 hours per week (weekly meetings) - for 152 weeks"]
[null,null,"Total               ",{"$f":"SUM(D5:D6)","v":0},{"$f":"SUM(E5:E6)","v":0}]
[]
[null,"ONLY ENTER VALUES IN THE BLUE SHADED CELLS"]
[null,"SUPPORTING HOURS WILL BE USED OVER THE DURATION OF CONTRACT (UP TO 31 AUGUST 2027)"]
[null,"THE NUMBER OF WEEKS (152) ARE BASED ON THE ASSUMPTION THAT THE CONTRACT WILL BE AWARDED ON 1 SEPTEMBER 2024."]
{"$rows_empty":95}
[null,"ONLY ENTER VALUES IN THE BLUE SHADED CELLS"]